Workbook

Sheet 1er sans Formule
A1: Revenus
C3: Mensuel | D3: Trimestriel | E3: Semestriel | F3: Annuel | G3: Moyenne
A4: Revenu net + 13e salaire
A5: Revenu net partenaire
A6: Allocations familiales
A7: Pension alimentaire
A8: Contributions enfants majeurs
A9: Autres revenus
A10: Total revenus
A12: Dépenses
A14: Habitat | C14: Mensuel | D14: Trimestrie | E14: Semestriel | F14: Annuel | G14: Moyenne
A15: Loyer
A16: Charges
A17: Electricité
A18: Eau
A19: Taxes déchets
A20: Equipement mobilier
A21: Caution (Swisscaution,…)
A22: Décompte charges
A25: Communication
A26: Radio, TV, Billag, téléréseau
A27: Téléphone fix, internet
A28: Natel
A30: Impôts et assurances
A31: Impôts cantonal
A32: Impôt fédéral direct
A33: Taxe militaire
A34: Taxes non-pompier
A35: Ass. Perte de gain maladie privée
A36: Caisse-maladie
A37: Cotisations AVS non actifs
A38: Association professionnelle
A39: Assurance ménage +RC
A40: Protection juridique
A43: Entretien
A44: Pension alimentaire
A45: Nourriture
A46: Produits ménagers
A47: Repas à l'exétérieur
A48: Frais de garde enfants
A49: Participation soins + franchise
A50: Dentiste, opticien
A51: Vêtements, chaussures
A52: Coiffeur, manucure
A53: Animaux (taxes, vaccins, nourriture)
A54: Equipement ménager
A57: Loisirs
A58: Sorties, loisirs, sports
A59: Activités extra scol.
A60: Cadeaux
A61: Revues cotisations diverses associations
A62: Invitations à domicile
A63: Argent de poche
A64: Cigarettes
A65: Jeu d'argent, boissons alcoolisées
A66: Vacances
B68: Formation
A69: Frais de perfectionnement
A70: Frais instruction enfants (écolage)
A72: Voiture et transports
A73: Assurances + plaques auto
A74: Parking
A75: Essence
A76: Voiture : service, répar., pneus
A77: Transports publics
A78: Leasing
A80: Epargne
A81: Epargne enfants
A82: Epargne vacances
A83: Epargne imprévus
A84: Epargne formation
A85: Epargne 3e pilier
A87: Divers
A89: Total dépenses
A91: Dettes
A92: Cartes de crédit
A93: Paiements acomptes
A94: Arrangements factures en retard
A95: Amortissement hypothécaire
A96: Remboursement crédits
A97: Société de recouvrement
A98: Cession de salaire
A99: Découverts bancaires
A100: Office des poursuites
A102: Montant disponible

Sheet Budget effectif simple
A1: Budget mensuel effectif
A4: Nom, prénom | D4: Domicile | F4: Nbre pers. | H4: Date
A8: Revenus
A10: Revenu net mensuel * | D10: * (sans le 13ème salaire)
A11: Revenu net mensuel partenaire *
A12: Pension, contrib. entretien
A13: Autres revenus | H13: =SUM(F10:F13) -> 0
A15: Total revenus | H15: =SUM(F10:F13) -> 0
A18: Dépenses
A20: Entretien
A21: Vêtements, chaussures
A22: Eau, électricité (sauf charges)
A23: Déplacements (sauf travail)
A24: Téléphone, radio, TV
A25: Loisirs, cadeaux
A26: Argent de poche | H26: =SUM(F20:F26) -> 0
A28: Loyer + charges
A29: Caisse-maladie
A30: Participation / franchise
A31: Repas à l'extérieur
A32: Déplacements professionnels
A33: Garde d'enfants, droit de visite
A34: Pension, contrib. entretien
A35: Autres assurances
A36: Impôts
A37: Vacances, formation
A38: Divers, imprévus
H40: =SUM(F28:F40) -> 0
A43: Leasing
A44: Assurances + plaques auto
A45: Réparation | H45: =SUM(F43:F45) -> 0
A47: Office des poursuites
A48: Remboursement crédit
A49: Cession, saisie
H50: =SUM(F47:F50) -> 0
A52: Total dépenses | H52: =SUM(H20:H50) -> 0
A55: Résultat | H55: =H15-H52 -> 0
A59: Répartition du 13ème salaire
A61: 13ème salaire | H61: =F61/12 -> 0
A62: 13ème salaire partenaire | H62: =F62/12 -> 0
A64: Total mensuel 13ème ** | H64: =SUM(H61:H62) -> 0
D67: ** (13ème salaire non comptabilisé dans le budget effectif)

Sheet Budget effectif détaillé
A1: Revenus
C3: Mensuel | D3: Trimestriel | E3: Semestriel | F3: Annuel | G3: Moyenne
A5: Revenu net + 13e salaire | G5: =C5+D5/3+E5/6+F5/12 -> 0
A6: Revenu net partenaire | G6: 0
A7: Allocations familiales | G7: 0
A8: Pension alimentaire | G8: 0
A9: Contributions enfants majeurs | G9: 0
A10: Autres revenus | G10: 0
A11: Total revenus | C11: =SUM(C5:C10) -> 0 | D11: =SUM(D5:D10) -> 0 | E11: =SUM(E5:E10) -> 0 | F11: =SUM(F5:F10) -> 0 | G11: =(C11*12+D11*4+E11*2+F11)/12 -> 0
A13: Dépenses
C15: Mensuel | D15: Trimestriel | E15: Semestriel | F15: Annuel | G15: Moyenne
A17: Habitat | C17: =SUM(G18:G25) -> 0
A18: Loyer | G18: =C18+D18/3+E18/6+F18/12 -> 0
A19: Charges | G19: =C19+D19/3+E19/6+F19/12 -> 0
A20: Electricité | G20: 0
A21: Eau | G21: 0
A22: Taxes déchets | G22: 0
A23: Equipement mobilier | G23: 0
A24: Caution (Swisscaution,…) | G24: 0
A25: Décompte charges | G25: 0
A28: Communication | C28: =SUM(G29:G31) -> 0
A29: Radio, TV, Billag, téléréseau | G29: =C29+D29/3+E29/6+F29/12 -> 0
A30: Téléphone fixe, internet | G30: =C30+D30/3+E30/6+F30/12 -> 0
A31: Natel | G31: =C31+D31/3+E31/6+F31/12 -> 0
A33: Impôts et assurances | C33: =SUM(G34:G43) -> 0
A34: Impôts cantonal | G34: =C34+D34/3+E34/6+F34/12 -> 0
A35: Impôt fédéral direct | G35: 0
A36: Taxe militaire | G36: 0
A37: Taxes non-pompier | G37: 0
A38: Ass. Perte de gain maladie privée | G38: 0
A39: Caisse-maladie | G39: 0
A40: Cotisations AVS non actifs | G40: 0
A41: Association professionnelle | G41: 0
A42: Assurance ménage +RC | G42: 0
A43: Protection juridique | G43: 0
A46: Entretien | C46: =SUM(G47:G58) -> 0
A47: Pension alimentaire | G47: =C47+D47/3+E47/6+F47/12 -> 0
A48: Nourriture | G48: 0
A49: Produits ménagers et lessiverie | G49: 0
A50: Repas à l'extérieur | G50: 0
A51: Garde enfants | G51: 0
A52: Exercice droit de visite | G52: 0
A53: Participation soins + franchise | G53: 0
A54: Dentiste, opticien | G54: 0
A55: Vêtements, chaussures | G55: 0
A56: Coiffeur, manucure | G56: 0
A57: Animaux (taxes, vaccins, nourriture) | G57: 0
A58: Equipement ménager | G58: 0
A61: Loisirs | C61: =SUM(G62:G69) -> 0
A62: Sorties, loisirs, sports | G62: =C62+D62/3+E62/6+F62/12 -> 0
A63: Activités extra scol. | G63: 0
A64: Cadeaux | G64: 0
A65: Revues,cotisations diverses associations | G65: 0
A66: Invitations à domicile | G66: 0
A67: Argent de poche | G67: 0
A68: Cigarettes | G68: 0
A69: Jeu d'argent, boissons alcoolisées | G69: 0
A70: Vacances | G70: =C70+D70/3+E70/6+F70/12 -> 0
B72: Formation | C72: =G73+G74 -> 0
A73: Frais de perfectionnement professionnels | G73: =C73+D73/3+E73/6+F73/12 -> 0
A74: Frais instruction enfants (écolage) | G74: =C74+D74/3+E74/6+F74/12 -> 0
A76: Voiture et transports | C76: =SUM(G77:G82) -> 0
A77: Assurances + plaques auto | G77: =C77+D77/3+E77/6+F77/12 -> 0
A78: Parking | G78: 0
A79: Essence | G79: 0
A80: Voiture : service, répar., pneus | G80: 0
A81: Transports publics | G81: 0
A82: Leasing | G82: 0
A84: Epargne | C84: =SUM(G85:G89) -> 0
A85: Epargne enfants | G85: =C85+D85/3+E85/6+F85/12 -> 0
A86: Epargne vacances | G86: =C86+D86/3+E86/6+F86/12 -> 0
A87: Epargne imprévus | G87: =C87+D87/3+E87/6+F87/12 -> 0
A88: Epargne formation | G88: =C88+D88/3+E88/6+F88/12 -> 0
A89: Epargne 3e pilier | G89: =C89+D89/3+E89/6+F89/12 -> 0
A91: Divers | G91: =C91+D91/3+E91/6+F91/12 -> 0
A93: Total dépenses courantes | G93: =SUM(G18:G91) -> 0
A95: Dettes | C95: =SUM(G96:G104) -> 0
A96: Cartes de crédit | G96: =C96+D96/3+E96/6+F96/12 -> 0
A97: Paiements acomptes | G97: =C97+D97/3+E97/6+F97/12 -> 0
A98: Arrangements factures en retard | G98: 0
A99: Amortissement hypothécaire | G99: 0
A100: Remboursement crédits | G100: 0
A101: Société de recouvrement | G101: 0
A102: Cession de salaire | G102: 0
A103: Découverts bancaires | G103: 0
A104: Office des poursuites | G104: 0
A106: Total dépenses | G106: =G93+C95 -> 0
A108: Montant disponible | G108: =G11-G106 -> 0

Sheet Budget aide sociale
A1: Calcul du minimum vital social
A4: Nom, prénom | D4: Domicile | F4: Nbre pers. | H4: Date
F5: ='Budget de gestion'!$E$5 -> 0
A8: Revenus
A10: Revenu net mensuel * | D10: * (sans le 13ème salaire) | F10: ='Budget effectif détaillé'!C5 -> 0
A11: Revenu net mensuel partenaire * | F11: ='Budget effectif détaillé'!C6 -> 0
A12: Pension, contrib. entretien | F12: ='Budget effectif détaillé'!C8 -> 0
A13: Autres revenus | F13: ='Budget effectif détaillé'!G10 -> 0 | H13: =SUM(F10:F13) -> 0
A15: Franchise s/ revenu | D15: nbre de bénéficiaires (fr. 400.-) | F15: =B15*400 -> 0
A16: Franch. s/ revenu apprentis | D16: nbre de bénéficiaires (fr. 150.-) | F16: =B16*150 -> 0 | H16: =F15+F16 -> 0
A18: Total revenus | H18: =H13-H16 -> 0
A20: Minimum vital social
A22: Forfait pour l'entretien + 25 ans | D22: nbre de pers. dans le ménage | F22: =IF(B22=1,986,IF(B22=2,1509,IF(B22=3,1834,IF(B22=4,2110,IF(B22=5,2386,IF(B22=6,2582,IF(B22=7,2912,0))))))) -> 0 | H22: =F22+F23 -> 0
A23: Forfait pour l'entretien - 25 ans | D23: nbre de pers. dans le ménage | F23: =IF(B23=1,788.8,IF(B23=2,1207,IF(B23=3,1467.2,IF(B23=4,1688,IF(B23=5,2386,IF(B23=6,2068,IF(B23=7,2329.6,0))))))) -> 0
A24: Suppl. d'intégration normal | D24: nbre de bénéficiaires (fr. 250.-) | F24: =B24*200 -> 0
A25: Suppl. d'intégration normal | D25: nbre de bénéficiaires (fr. 150.-) | F25: =B25*150 -> 0 | H25: =IF(SUM(F24:F25)<850,(SUM(F24:F25)),IF(SUM(F24:F25)>=850,850)) -> 0
A27: Frais de logement | F27: ='Budget effectif détaillé'!G18+'Budget effectif détaillé'!G19 -> 0
A28: Caisse-maladie | D28: pris en charge par le subside cantonal | F28: ='Budget effectif détaillé'!C39 -> 0
A29: Participation / franchise/dentiste/opticien | F29: ='Budget effectif détaillé'!G53+'Budget effectif détaillé'!G54 -> 0
A30: Repas à l'extérieur | D30: nbre de repas | F30: =B30*8 -> 0
A31: Frais de déplacement rprofessionnels reconnus ( à remplir)
A32: Garde d'enfants / écolage | F32: ='Budget effectif détaillé'!G51 -> 0
A33: Frais de perfectionnement | F33: ='Budget effectif détaillé'!G73 -> 0
A34: Exercice droit de visite | F34: ='Budget effectif détaillé'!G52 -> 0 | H34: =SUM(F27:F34) -> 0
A36: Total minimum vital social | H36: =H22+H25+H34 -> 0
A39: Résultat | H39: =H18-H36 -> 0

Sheet Budget aides privées
A1: Budget mensuel effectif
A4: Nom, prénom | D4: Domicile | F4: Nbre pers. | H4: Date
A5: ='Budget aide sociale'!A5:B5 -> 0 | D5: ='Budget aide sociale'!D5 -> 0 | F5: ='Budget aide sociale'!F5 -> 0 | H5: ='Budget aide sociale'!H5 -> 0
A7: Revenus
A9: Revenu net mensuel * | D9: * (sans le 13ème salaire) | F9: ='Budget aide sociale'!F10 -> 0
A10: Revenu net mensuel partenaire * | F10: ='Budget aide sociale'!F11 -> 0
A11: Pension, contrib. entretien | F11: ='Budget aide sociale'!F12 -> 0
A12: Autres revenus | F12: ='Budget aide sociale'!F13 -> 0 | H12: =SUM(F9:F12) -> 0
A14: Total revenus | H14: =SUM(F9:F12) -> 0
A16: Dépenses
A18: Nourriture | F18: ='Budget effectif détaillé'!G48 -> 0
A19: Vêtements, chaussures | F19: ='Budget effectif détaillé'!G55 -> 0
A20: Produits ménagers et lessiverie | F20: ='Budget effectif détaillé'!G49 -> 0
A21: Eau, électricité (sauf charges) | F21: ='Budget effectif détaillé'!G20+'Budget effectif détaillé'!G21 -> 0
A22: Déplacements (sauf travail)
A23: Téléphone, radio, TV | F23: ='Budget effectif détaillé'!G29+'Budget effectif détaillé'!G30+'Budget effectif détaillé'!G31 -> 0
A24: Loisirs, cadeaux | F24: ='Budget effectif détaillé'!G62+'Budget effectif détaillé'!G64 -> 0
A25: Argent de poche | F25: ='Budget effectif détaillé'!G67 -> 0 | H25: =SUM(F18:F25) -> 0
A27: Loyer + charges | F27: ='Budget effectif détaillé'!G18+'Budget effectif détaillé'!G19 -> 0
A28: Caisse-maladie | F28: ='Budget effectif détaillé'!C39 -> 0
A29: Participation / franchise/dentiste/opticien | F29: ='Budget aide sociale'!F29+'Budget effectif détaillé'!G54 -> 0
A30: Repas à l'extérieur | F30: ='Budget effectif détaillé'!G50 -> 0
A31: Déplacements professionnels
A32: Garde d'enfants, droit de visite | F32: ='Budget aide sociale'!F34+'Budget aide sociale'!F32 -> 0
A33: Pension, contrib. entretien | F33: ='Budget effectif détaillé'!G47 -> 0
A34: Autres assurances | F34: ='Budget effectif détaillé'!G40+'Budget effectif détaillé'!G42 -> 0
A35: Impôts | F35: ='Budget effectif détaillé'!G34+'Budget effectif détaillé'!G35 -> 0
A36: Perfectionnement
A37: Divers, imprévus | F37: ='Budget effectif détaillé'!G91 -> 0
H38: =SUM(F27:F38) -> 0
A41: Leasing | F41: ='Budget effectif détaillé'!C82 -> 0
A42: Assurances + plaques auto | F42: ='Budget effectif détaillé'!G77 -> 0
A43: Entretien et réparation | F43: ='Budget effectif détaillé'!G80 -> 0 | H43: =SUM(F41:F43) -> 0
A45: Office des poursuites
A46: Remboursement crédits
A47: Cession, saisie
H48: =SUM(F45:F48) -> 0
A50: Total dépenses | H50: =SUM(H18:H48) -> 0
A52: Résultat | H52: =H14-H50 -> 0

Sheet ME OP Ind.
A1: ME OP adulte seul / non qualifié
A4: Nom, prénom | D4: Domicile | F4: Nbre pers. | H4: Date
A5: ='Budget aide sociale'!A5:B5 -> 0 | D5: ='Budget aide sociale'!D5 -> 0 | F5: ='Budget aide sociale'!F5 -> 0 | H5: ='Budget aide sociale'!H5 -> 0
B7: 1 | D7: unité | H7: montant
A10: Revenus mensuels
A12: Revenu net mensuel * | D12: * (sans le 13ème salaire) | F12: ='Budget aide sociale'!F10 -> 0
A13: Pension, contrib. entretien | F13: ='Budget aide sociale'!F12 -> 0
A14: Autres revenus mensuels | F14: ='Budget aide sociale'!F13 -> 0 | H14: =SUM(F12:F14) -> 0
A16: Total revenus mensuels | H16: =SUM(F12:F14) -> 0
A17: 13e salaire
A18: Minimum d'existence
A20: Montant de base | B20: * | D20: néant | F20: =IF(F21=1,0,IF(F21=2,1200,IF(F21=3,1350,IF(F21=4,1700)))) -> 0
D21: débiteur vivant seul | F21: 1
D22: débiteur seul avec obligation soutien
D23: couple
D24: nbre enfants jusqu'à 10 ans | F24: =B24*400 -> 0
D25: nbre enfants de + 10 ans | F25: =B25*600 -> 0
A26: Besoins alimentaires accrus | D26: journées de travail | F26: =B26*5.5 -> 0
A27: Usure des vêtements | F27: ='Budget effectif détaillé'!G17+'Budget effectif détaillé'!G18 -> 0
A28: Loyer + frais de charges | F28: ='Budget effectif détaillé'!G18+'Budget effectif détaillé'!G19 -> 0
A29: Cotisations sociales | F29: ='Budget effectif détaillé'!G39 -> 0
A30: Soins médicaux/participations/franchises/ dentiste/opticien | F30: ='Budget effectif détaillé'!G53+'Budget effectif détaillé'!G54 -> 0
A31: Repas à l'extérieur | D31: nbre de repas | F31: =B31*11 -> 0
A32: Frais de déplacement professionnels reconnus | F32: =B32*11 -> 0
A33: Contribution d'assistance | F33: ='Budget effectif détaillé'!G47 -> 0
A34: Frais d'instruction enfants | F34: ='Budget effectif détaillé'!G74 -> 0
A35: Location / leasing objets de stricte nécessité | F35: ='Budget effectif détaillé'!G82 -> 0
A36: Exercice droit de visite | F36: ='Budget effectif détaillé'!G52 -> 0
A37: Divers | F37: ='Budget effectif détaillé'!G53 -> 0 | H37: =SUM(F27:F37) -> 0
A39: Total minimum d'existence | H39: =F20+F24+F25+F26+F28+F29+F30+F31+F32+F33+F35+F34+F36+F37 -> 0
A41: Saisie mensuelle | H41: =H16-H39 -> 0
A42: Saisie du 13ème salaire | H42: =F17*0.6 -> 0

Sheet ME OP Couple
A1: Calcul du minimum d'existence OP couple marié ou concubin qualifiés
A4: Nom, prénom | D4: Domicile | F4: Nbre pers. | H4: Date
A5: ='Budget aide sociale'!A5:B5 -> 0 | D5: ='Budget aide sociale'!D5 -> 0 | F5: ='Budget aide sociale'!F5 -> 0 | H5: ='Budget aide sociale'!H5 -> 0
B7: 1 | D7: unité | H7: montant
A10: Revenus mensuels | F10: Conjoint 1 | H10: Conjoint 2
A12: Revenu net mensuel * | D12: * (sans le 13ème salaire)
A13: Pension, contrib. entretien
A14: Autres revenus mensuels
A16: Total revenus mensuels | D16: =F16+H16 -> 0 | F16: =SUM(F12:F14) -> 0 | G16: =SUM(G12:G14) -> 0 | H16: =SUM(H12:H14) -> 0
A17: Taux % de participation aux besoins | D17: =H17+F17 ->  | F17: =100*F16/D16 ->  | H17: =100*H16/D16 -> 
A18: 13e salaire | G18: 3200
A19: Minimum d'existence
A21: Montant de base | B21: * | D21: néant | F21: =IF(F22=1,0,IF(F22=2,1200,IF(F22=3,1350,IF(F22=4,1700)))) -> 0
D22: débiteur vivant seul | F22: 1
D23: débiteur seul avec obligation soutien
D24: couple
D25: nbre enfants jusqu'à 10 ans | F25: =B25*400 -> 0
D26: nbre enfants de + 10 ans | F26: =B26*600 -> 0
A27: Besoins alimentaires accrus | D27: journées de travail | F27: =B27*5.5 -> 0
A28: Usure des vêtements | F28: ='Budget effectif détaillé'!G17+'Budget effectif détaillé'!G18 -> 0
A29: Loyer + frais de charges
A30: Cotisations sociales | F30: ='Budget effectif détaillé'!G39 -> 0
A31: Soins médicaux/participations/franchises/ dentiste/opticien | F31: ='Budget effectif détaillé'!G53+'Budget effectif détaillé'!G54 -> 0
A32: Repas à l'extérieur | D32: nbre de repas | F32: =B32*11 -> 0
A33: Frais de déplacement professionnels reconnus | F33: =B33*11 -> 0
A34: Contribution d'assistance | F34: ='Budget effectif détaillé'!G47 -> 0
A35: Frais d'instruction enfants | F35: ='Budget effectif détaillé'!G74 -> 0
A36: Location / leasing objets de stricte nécessité | F36: ='Budget effectif détaillé'!G82 -> 0
A37: Exercice droit de visite | F37: ='Budget effectif détaillé'!G52 -> 0
A38: Divers | F38: ='Budget effectif détaillé'!G53 -> 0
A40: Total minimum d'existence | F40: =F21+F25+F26+F27+F28+F29+F30+F31+F32+F33+F34+F35+F36+F37+F38 -> 0
A41: Participation de chaque conjoint | F41: =F40*F17/100 ->  | H41: =F40*H17/100 -> 
A43: Saisie mensuelle | F43: =F16-F41 ->  | G43: =G16-G41 -> 0
A44: Saisie 13e | F44: =F18*0.6 -> 0 | H44: =H18*0.6 -> 0

Sheet Budget créanciers
A1: Budget assainissement (OP élargi)
A4: Nom, prénom | D4: Domicile | F4: Nbre pers. | H4: Date
A5: ='Budget aide sociale'!A5:B5 -> 0 | D5: ='Budget aide sociale'!D5 -> 0 | F5: ='Budget aide sociale'!F5 -> 0 | H5: ='Budget aide sociale'!H5 -> 0
A7: Revenus
A9: Revenu net mensuel * | D9: * (sans le 13ème salaire) | F9: ='Budget aide sociale'!F10 -> 0
A10: Revenu net mensuel partenaire * | F10: ='Budget aide sociale'!F11 -> 0
A11: Pension, contrib. entretien | F11: ='Budget aide sociale'!F12 -> 0
A12: Autres revenus | F12: ='Budget aide sociale'!F13 -> 0 | H12: =SUM(F9:F12) -> 0
A14: Total revenus | H14: =SUM(F9:F12) -> 0
A16: Dépenses
A18: Montant de base | B18: * | D18: néant | F18: =IF(F19=1,0,IF(F19=2,1200,IF(F19=3,1350,IF(F19=4,1700)))) -> 0
D19: débiteur vivant seul | F19: 1
D20: débiteur seul avec obligation soutien
D21: couple
D22: nbre enfants jusqu'à 10 ans | F22: =B22*400 -> 0
D23: nbre enfants de + 10 ans | F23: =B23*600 -> 0
A24: Besoins alimentaires accrus | D24: journées de travail | F24: =B24*5.5 -> 0
A25: Usure des vêtements | F25: ='Budget effectif détaillé'!G17+'Budget effectif détaillé'!G18 -> 0
A26: Loyer + charges | F26: ='Budget effectif détaillé'!G18+'Budget effectif détaillé'!G19 -> 0
A27: Cotisations sociales | F27: ='Budget effectif détaillé'!G39 -> 0
A28: Impôts | F28: ='Budget effectif détaillé'!G34+'Budget effectif détaillé'!G35 -> 0
A29: Autres assurances | F29: ='Budget effectif détaillé'!G38+'Budget effectif détaillé'!G40+'Budget effectif détaillé'!G42+'Budget effectif détaillé'!G43 -> 0
A30: Soins médicaux/participations/franchise/dentiste/opticien | F30: ='Budget effectif détaillé'!G53+'Budget effectif détaillé'!G54 -> 0
A31: Repas à l'extérieur | D31: nbre de repas | F31: =B31*11 -> 0
A32: Frais de déplacement
A33: Contribution d'assistance | F33: ='Budget effectif détaillé'!G47 -> 0
A34: Frais d'instruction enfants | F34: ='Budget effectif détaillé'!G74 -> 0
A35: Paiements acomptes / leasing | F35: ='Budget effectif détaillé'!G82 -> 0
A36: Exercice droit de visite | F36: ='Budget effectif détaillé'!G52 -> 0
A37: Divers | H37: =SUM(F25:F37) -> 0
A39: Total dépenses | H39: =F18+F22+F27+F23+F24+F26+F28+F29+F30+F31+F32+F33+F34+F35+F36+F37 -> 0
A41: Résultat | H41: =H14-H39 -> 0
A43: * concubin sans enfants communs et propres enfants chez ex: 1100
A44: concubin avec ses propres enfants et pas enfant commun: 1250
A45: concubins avec enfants en commun = couple

Sheet Budget de gestion
A1: Budget mensuel gestion (OP élargie sous une autre forme ) + dépenses | I1: Tableau des revenus et dépenses
A4: Nom, prénom | D4: Domicile | F4: Nbre pers. | H4: Date
A5: ='Budget aide sociale'!A5:B5 -> 0 | D5: ='Budget aide sociale'!D5 -> 0 | F5: ='Budget aide sociale'!F5 -> 0 | H5: ='Budget aide sociale'!H5 -> 0
I7: Janvier | K7: Février | M7: Mars | O7: Avril | Q7: Mai | S7: Juin | U7: Juillet | W7: Août | Y7: Septembre | AA7: Octobre | AC7: Novembre | AE7: Décembre | AG7: Contrôle budget
A8: Revenus | I8: Cpte courant | J8: Cpte périod. | K8: Cpte courant | L8: Cpte périod. | M8: Cpte courant | N8: Cpte périod. | O8: Cpte courant | P8: Cpte périod. | Q8: Cpte courant | R8: Cpte périod. | S8: Cpte courant | T8: Cpte périod. | U8: Cpte courant | V8: Cpte périod. | W8: Cpte courant | X8: Cpte périod. | Y8: Cpte courant | Z8: Cpte périod. | AA8: Cpte courant | AB8: Cpte périod. | AC8: Cpte courant | AD8: Cpte périod. | AE8: Cpte courant | AF8: Cpte périod.
E9: Mensuel | F9: Annuel | G9: Moyenne | I9: Revenus
A10: Revenu net | E10: ='Budget effectif détaillé'!C5 -> 0 | F10: ='Budget effectif détaillé'!F5 -> 0 | G10: =E10+F10/12 -> 0
A11: Revenu net mensuel partenaire * | E11: ='Budget effectif détaillé'!C6 -> 0 | F11: ='Budget effectif détaillé'!F6 -> 0 | G11: =E11+F11/12 -> 0
A12: Pension, contrib. entretien | E12: ='Budget effectif détaillé'!C8+'Budget effectif détaillé'!C9 -> 0 | F12: ='Budget effectif détaillé'!F8+'Budget effectif détaillé'!F9 -> 0 | G12: =E12+F12/12 -> 0
A13: Autres revenus | E13: ='Budget effectif détaillé'!C7+'Budget effectif détaillé'!C10 -> 0 | F13: ='Budget effectif détaillé'!F7+'Budget effectif détaillé'!F10 -> 0 | G13: =E13+F13/12 -> 0
A14: Total revenus | E14: =SUM(E10:E13) -> 0 | F14: =SUM(F10:F13) -> 0 | G14: =SUM(G10:G13) -> 0
A16: Dépenses | E16: Mensuel | F16: Annuel | G16: Moyenne
A18: Factures mensuelles: budget = | D18: =SUM(G19:G24) -> 0 | I18: Totaux mensuels des factures mensuelles payées | AG18: Solde
A19: Loyer + charges | E19: ='Budget effectif détaillé'!C18+'Budget effectif détaillé'!C19 -> 0 | G19: =E19 -> 0 | H19: Loyer + charges | AG19: =G19*12-I19-K19-M19-O19-Q19-S19-U19-W19-Y19-AA19-AC19-AE19 -> 0
A20: Téléphone, internet, câble | E20: ='Budget effectif détaillé'!C30+'Budget effectif détaillé'!C31 -> 0 | G20: =E20 -> 0 | H20: Téléphone, internet, câble | AG20: =G20*12-I20-K20-M20-O20-Q20-S20-U20-W20-Y20-AA20-AC20-AE20 -> 0
A21: Pension alimentaires | E21: ='Budget effectif détaillé'!C47 -> 0 | G21: 0 | H21: Pension alimentaires | AG21: 0
A22: Frais de garde enfants et écolage | E22: ='Budget effectif détaillé'!C51 -> 0 | G22: 0 | H22: Frais de garde enfants | AG22: 0
A23: Caisse-maladie | E23: ='Budget effectif détaillé'!C39 -> 0 | G23: 0 | H23: Caisse-maladie | AG23: 0
A24: Impôt cantonal | E24: ='Budget effectif détaillé'!C34 -> 0 | G24: 0 | H24: Impôts cantonal | AG24: 0
H25: Total | I25: =SUM(I19:I24) -> 0 | K25: =SUM(K19:K24) -> 0 | M25: 0 | O25: 0 | Q25: 0 | S25: 0 | U25: 0 | W25: 0 | Y25: 0 | AA25: 0 | AC25: 0 | AE25: 0
I27: Totaux mensuels des factures périodiques payées
A28: Factures périodiques, budget = | D28: =SUM(G29:G48) -> 0 | AG28: Solde
A29: Vêtements, chaussures | F29: ='Budget effectif détaillé'!G55 -> 0 | G29: =F29/12 -> 0 | H29: Vêtements, chaussures | AG29: =F29-J29-L29-N29-P29-R29-T29-V29-X29-Z29-AB29-AD29-AF29 -> 0
A30: Coiffeur | F30: ='Budget effectif détaillé'!G56 -> 0 | G30: =F30/12 -> 0 | H30: Coiffeur | AG30: =F30-J30-L30-N30-P30-R30-T30-V30-X30-Z30-AB30-AD30-AF30 -> 0
A31: Garde enfants et écolage | F31: ='Budget effectif détaillé'!G51 -> 0 | G31: 0 | H31: Frais d'instruction enfants | AG31: 0
A32: Dentiste, opticien | F32: ='Budget effectif détaillé'!G54 -> 0 | G32: 0 | H32: Dentiste, opticien | AG32: 0
A33: Participation / franchise | F33: ='Budget effectif détaillé'!G53 -> 0 | G33: 0 | H33: Participation / franchise | AG33: 0
A34: Combustible ou décompte charges | F34: ='Budget effectif détaillé'!G25 -> 0 | G34: 0 | H34: Combustible / décompte charges | AG34: 0
A35: Electricité | F35: ='Budget effectif détaillé'!G20 -> 0 | G35: 0 | H35: Electricité | AG35: 0
A36: Eau | F36: ='Budget effectif détaillé'!G21 -> 0 | G36: 0 | H36: Eau | AG36: 0
A37: Radio, TV | F37: ='Budget effectif détaillé'!G29 -> 0 | G37: 0 | H37: Radio, TV | AG37: 0
A38: Taxe déchets | F38: ='Budget effectif détaillé'!G22 -> 0 | G38: 0 | H38: Taxe déchets | AG38: 0
A39: Taxe pompiers + militaire | F39: ='Budget effectif détaillé'!G36+'Budget effectif détaillé'!G37 -> 0 | G39: 0 | H39: Taxe pompiers + militaire | AG39: 0
A40: Autres assurances (ménage + caution) | F40: ='Budget effectif détaillé'!G42 -> 0 | G40: 0 | H40: Autres assurances | AG40: 0
A41: Impôt fédéral direct | F41: ='Budget effectif détaillé'!G35 -> 0 | G41: 0 | H41: Impôt fédéral direct | AG41: 0
A42: Assurances + plaques auto | F42: ='Budget effectif détaillé'!G77 -> 0 | G42: 0 | H42: Assurances + plaques auto | AG42: 0
A43: Réparations, services, pneus | F43: ='Budget effectif détaillé'!G80 -> 0 | G43: 0 | H43: Réparations, services, pneus | AG43: 0
A44: Cadeaux | F44: ='Budget effectif détaillé'!G64 -> 0 | G44: 0 | H44: Cadeaux | AG44: 0
A45: Vacances | F45: ='Budget effectif détaillé'!G70 -> 0 | G45: 0 | H45: Vacances | AG45: 0
A46: Formation | F46: ='Budget effectif détaillé'!G73+'Budget effectif détaillé'!G74 -> 0 | G46: 0 | H46: Formation | AG46: 0
A47: Revues, abonnements, cotisations | F47: ='Budget effectif détaillé'!G65 -> 0 | G47: 0 | H47: Revues, abonn., cotisations | AG47: 0
A48: Divers, imprévus | F48: ='Budget effectif détaillé'!G91 -> 0 | G48: 0 | H48: Divers, imprévus | AG48: 0
H49: Total | J49: =SUM(J29:J48) -> 0 | L49: =SUM(L29:L48) -> 0 | N49: =SUM(N29:N48) -> 0 | P49: =SUM(P29:P48) -> 0 | R49: =SUM(R29:R48) -> 0 | T49: =SUM(T29:T48) -> 0 | V49: =SUM(V29:V48) -> 0 | X49: =SUM(X29:X48) -> 0 | Z49: =SUM(Z29:Z48) -> 0 | AB49: =SUM(AB29:AB48) -> 0 | AD49: =SUM(AD29:AD48) -> 0 | AF49: =SUM(AF29:AF48) -> 0
A51: Dépenses courantes, budget = | D51: =SUM(G52:G61) -> 0 | I51: Totaux mensuels des dépenses courantes effectuées
A52: Nourriture | E52: ='Budget effectif détaillé'!C48 -> 0 | G52: =E52 -> 0 | H52: Nourriture | AG52: =G52*12-I52-K52-M52-O52-Q52-S52-U52-W52-Y52-AA52-AC52-AE52 -> 0
A53: Produits ménagers, sacs ordures taxés | E53: ='Budget effectif détaillé'!C49 -> 0 | G53: =E53 -> 0 | H53: Prod. ménagers, sacs taxés | AG53: 0
A54: Repas à l'extérieur | E54: ='Budget effectif détaillé'!C50 -> 0 | G54: 0 | H54: Repas à l'extérieur | AG54: 0
A55: Transports publics | E55: ='Budget effectif détaillé'!C81 -> 0 | G55: 0 | H55: Transports publics | AG55: 0
A56: Essence | E56: ='Budget effectif détaillé'!C79 -> 0 | G56: 0 | H56: Essence | AG56: 0
A57: Loisirs, sorties | E57: ='Budget effectif détaillé'!C62 -> 0 | G57: 0 | H57: Loisirs, sorties | AG57: 0
A58: Invitations | E58: ='Budget effectif détaillé'!C66 -> 0 | G58: 0 | H58: Invitations | AG58: 0
A59: Argent de poche | E59: ='Budget effectif détaillé'!C67 -> 0 | G59: 0 | H59: Argent de poche | AG59: 0
A60: Cigarettes | E60: ='Budget effectif détaillé'!C68 -> 0 | G60: 0 | H60: Cigarettes | AG60: 0
A61: Animaux | E61: ='Budget effectif détaillé'!C57 -> 0 | G61: 0 | H61: Animaux | AG61: 0
AG62: 0
A63: Dettes | AG63: 0
A64: Cartes de crédit | E64: ='Budget effectif détaillé'!C96 -> 0 | G64: 0 | H64: Cartes de crédit | AG64: 0
A65: Paiements acomptes | E65: ='Budget effectif détaillé'!C97 -> 0 | G65: 0 | H65: Paiements acomptes | AG65: 0
A66: Equipements (électroménager, Hifi, mobilier) | E66: ='Budget effectif détaillé'!C58 -> 0 | G66: 0 | H66: Equipement | AG66: 0
A67: Arrangements factures en retard | E67: ='Budget effectif détaillé'!C98 -> 0 | G67: 0 | H67: Arrange. factures en retard | AG67: 0
A68: Amortissement hypothécaire | E68: ='Budget effectif détaillé'!C99 -> 0 | G68: 0 | H68: Amortissement hypothécaire | AG68: 0
A69: Remboursement crédits | E69: ='Budget effectif détaillé'!C100 -> 0 | G69: 0 | H69: Remboursement crédits | AG69: 0
A70: Société de recouvrement | E70: ='Budget effectif détaillé'!C101 -> 0 | G70: 0 | H70: Société de recouvrement | AG70: 0
A71: Cession de salaire | E71: ='Budget effectif détaillé'!C102 -> 0 | G71: 0 | H71: Cession de salaire | AG71: 0
A72: Découverts bancaires | E72: ='Budget effectif détaillé'!C103 -> 0 | G72: 0 | H72: Découverts bancaires | AG72: 0
A73: Office des poursuites | E73: ='Budget effectif détaillé'!C104 -> 0 | G73: 0 | H73: Office des poursuites | AG73: 0
H74: Total | I74: =SUM(I52:I73) -> 0 | K74: =SUM(K52:K73) -> 0 | M74: =SUM(M52:M73) -> 0 | O74: =SUM(O52:O73) -> 0 | Q74: =SUM(Q52:Q73) -> 0 | S74: =SUM(S52:S73) -> 0 | U74: =SUM(U52:U73) -> 0 | W74: =SUM(W52:W73) -> 0 | Y74: =SUM(Y52:Y73) -> 0 | AA74: =SUM(AA52:AA73) -> 0 | AC74: =SUM(AC52:AC73) -> 0 | AE74: =SUM(AE52:AE73) -> 0
A75: Total dépenses | G75: =SUM(G19:G61) -> 0
A76: Alimentation du compte destiné aux factures périodiques
A77: 13ème salaire | F77: =F14 -> 0 | G77: =F77 -> 0
A78: Acomptes mensuels | E78: =(D28-F14)/12 -> 0 | G78: =E78*12 -> 0
A80: Total | G80: =SUM(G77:G78) -> 0
A82: Disponible | G82: =G14-G75 -> 0

Sheet Sous-budget santé
C2: Sous-budget santé | H2: Frs / mois | I2: Fréquence / an | J2: Est calculé | K2: Est calculé | L2: Date
J3: Montant / an | K3: Montant / mois
C5: Dépenses | L5: Commentaires
D6: Assurance maladie de base époux | I6: 12 | J6: =IF(H6>0,ROUND(H6*I6,0)," ") ->  | K6: =IF(H6>0,ROUND(H6*I6/12,1)," ") -> 
D7: Assurance maladie complémentaire époux | I7: 12
D8: Assurance maladie de base épouse | I8: 12
D9: Assurance maladie complémentaire épouse | I9: 12
D10: Assurance maladie de base enfant 1 | I10: 12
D11: Aussurance maladie complémentaire enfant 1 | I11: 12
D12: Aussurance maladie de base enfant 2 | I12: 12
D13: Assurance maladie complémentaire enfant 2 | I13: 12
D14: Coûts supp. sans couverture par la caisse-maladie | I14: 1
D15: Franchise demandée par la caisse-maladie | I15: 1
D16: Participation demandée par la caisse-maladie | I16: 1
D17: Traitement dentaire | I17: 1
D18: frais d'opticien | I18: 1
D20: Total des dépenses | J20: =ROUNDUP(SUM(J6:J19),0) -> 0 | K20: =SUM(K6:K19) -> 0

Sheet Sous budget maison
C2: Budget maison détaillé | H2: Montant annuel | I2: Fréquence durant l'année | J2: calculé | K2: Calculé | L2: Date
J3: Montant par an | K3: Montant par mois
C5: Charges | L5: Commentaires, recommandations, buts
D6: 1. Hypothèque | J6: =IF(H6>0,ROUND(H6*I6,0)," ") ->  | K6: =IF(H6>0,ROUND(H6*I6/12,1)," ") -> 
D7: 2. Hypothèque | J7: =IF(H7>0,ROUND(H7*I7,0)," ") ->  | K7: =IF(H7>0,ROUND(H7*I7/12,1)," ") -> 
D8: Amortissement | J8: =IF(H8>0,ROUND(H8*I8,0)," ") -> 
D9: Crédit de rénovation | J9: =IF(H9>0,ROUND(H9*I9,0)," ") -> 
D10: Eau, eaux usées
D11: Assurance immobilière bris de verre, dégâts d'eau | J11: =IF(H11>0,ROUND(H11*I11,0)," ") -> 
D12: Assurance cantonale incendie
D13: Entretien courant du jardin et du bâtiment
D14: Chauffage | K14: =IF(H14>0,ROUND(H14*I14/12,1)," ") -> 
D15: Ramonage, entretien chaudière | K15: =IF(H15>0,ROUND(H15*I15/12,1)," ") -> 
D16: Taxe immobilière et taxe cadastrale | K16: =IF(H16>0,ROUND(H16*I16/12,1)," ") -> 
D17: Fonds de rénovation et améliorations | K17: =IF(H17>0,ROUND(H17*I17/12,1)," ") -> 
D18: Primes d'assurance (décès, invalidité, perte de gain) | K18: =IF(H18>0,ROUND(H18*I18/12,1)," ") -> 
D19: Fiduciaire
D20: Divers
J23: =IF(H23>0,ROUND(H23*I23,0)," ") -> 
D24: Total Charges | J24: =ROUNDUP(SUM(J6:J23),0) -> 0 | K24: =SUM(K6:K23) -> 0

Sheet Etat des dettes
A1: Etat des dettes
C3: Nom, prénom | F3: Domicile | G3: Nbre pers. | H3: Date
H4: ='Budget aide sociale'!J4 -> 0
A7: Retards ( pas aux poursuites) | D7: =SUM(D8:D15) -> 0
A17: Emprunts et crédits (pas aux poursuites) | D17: =SUM(D18:D25) -> 0
B27: Poursuites | D27: =SUM(D28:D35) -> 0
A37: ADB | D37: =SUM(D38:D45) -> 0
A48: Total | D48: =+D37+D27+D17+D7 -> 0

Sheet Capacité remboursement
A1: Capacité de remboursement
A4: Nom, prénom | D4: Domicile | F4: Nbre pers. | H4: Date
A5: ='Budget aide sociale'!A5:B5 -> 0 | D5: ='Budget aide sociale'!D5 -> 0 | F5: ='Budget aide sociale'!F5 -> 0 | H5: ='Budget aide sociale'!H5 -> 0
A8: Budget courant
A10: Revenus | F10: ='Budget de gestion'!$G$14 -> 0
A11: Ajout 13ème salaire | F11: ='Budget de gestion'!$G$80 -> 0 | H11: =SUM(F10:F11) -> 0
A13: Dépenses | F13: ./. | H13: ='Budget effectif détaillé'!G93 -> 0
A15: Solde mensuel disponible | D15: (ce montant doit être positif) | H15: =H11-H13 -> 0
A18: Etat des dettes
A20: Retards | F20: ='Etat des dettes'!$D$7 -> 0
A21: Emprunts, crédits | F21: ='Etat des dettes'!D17 -> 0
A22: Poursuites | F22: ='Etat des dettes'!D27 -> 0
A23: Adb | F23: ='Etat des dettes'!D37 -> 0
A26: Montant total des dettes | H26: =SUM(F20:F24) -> 0
A29: Calcul de la capacité de remboursement
A31: Montant total des dettes | H31: =H26 -> 0
A33: Solde mensuel disponible | F33: ÷ | H33: =H15 -> 0
A35: Nombre de mensualités | D35: (le résultat ne doit pas dépasser 36 mois) | H35: =H31/H33 -> 
A38: Réduction à obtenir en cas de dépassement de délai (> 36 mois)
A40: Montant total des dettes | H40: =H26 -> 0
A42: Solde disponible sur 36 mois | H42: =H15*36 -> 0
A44: Pourcentage de couverture | H44: =IF(H35>36,H42/H26,1) -> 

Sheet Plan désendettement
A1: PLAN DE DESENDETTEMENT
A2: situation au :
A4: Nom :
B6: Montant | C6: % | D6: nouvel | E6: somme | F6: demande | G6: Total proposé | I6: Suite
B7: de la | C7: du | D7: acompte | E7: mensuelle | F7: du | G7: pour | I7: donnée à
A8: Créanciers | B8: dette | C8: Total | D8: mensuel | E8: arrondie | F8: créancier | G8: 36 mois | I8: l'assainissement
C11: =SUM(100*B11/B29) ->  | D11: =SUM('Capacité remboursement'!$H$42/100*C11) ->  | G11: =SUM(E11*36) -> 0
C12: =SUM(100*B12/B29) ->  | D12: =SUM('Capacité remboursement'!$H$42/100*C12) ->  | G12: =SUM(E12*36) -> 0
C13: =SUM(100*B13/B29) ->  | D13: =SUM('Capacité remboursement'!$H$42/100*C13) ->  | G13: 0
C14: =SUM(100*B14/B29) ->  | D14: =SUM('Capacité remboursement'!$H$42/100*C14) ->  | G14: 0
C15: =SUM(100*B15/B29) ->  | D15: =SUM('Capacité remboursement'!$H$42/100*C15) ->  | G15: 0
C16: =SUM(100*B16/B29) ->  | D16: =SUM('Capacité remboursement'!$H$42/100*C16) ->  | G16: 0
C17: =SUM(100*B17/B29) ->  | D17: =SUM('Capacité remboursement'!$H$42/100*C17) ->  | G17: 0
C18: =SUM(100*B18/B29) ->  | D18: =SUM('Capacité remboursement'!$H$42/100*C18) ->  | G18: 0
C19: =SUM(100*B19/B29) ->  | D19: =SUM('Capacité remboursement'!$H$42/100*C19) ->  | G19: 0
C20: =SUM(100*B20/B29) ->  | D20: =SUM('Capacité remboursement'!$H$42/100*C20) ->  | G20: 0
C21: =SUM(100*B21/B29) ->  | D21: =SUM('Capacité remboursement'!$H$42/100*C21) ->  | G21: 0
C22: =SUM(100*B22/B29) ->  | D22: =SUM('Capacité remboursement'!$H$42/100*C22) ->  | G22: 0
C23: =SUM(100*B23/B29) ->  | D23: =SUM('Capacité remboursement'!$H$42/100*C23) ->  | G23: 0
C24: =SUM(100*B24/B29) ->  | D24: =SUM('Capacité remboursement'!$H$42/100*C24) ->  | G24: 0
C25: =SUM(100*B25/B29) ->  | D25: =SUM('Capacité remboursement'!$H$42/100*C25) ->  | G25: 0
C26: =SUM(100*B26/B29) ->  | D26: =SUM('Capacité remboursement'!$H$42/100*C26) ->  | G26: 0
C27: =SUM(100*B27/B29) ->  | D27: =SUM('Capacité remboursement'!$H$42/100*C27) ->  | G27: 0
A29: Total | B29: =SUM(B11:B28) -> 0 | C29: =SUM(C11:C28) ->  | E29: =SUM(E11:E28) -> 0 | F29: =SUM(F11:F28) -> 0 | G29: =SUM(G11:G28) -> 0 | I29: Total de l'assainissement
D30: Mensualité | G30: =SUM(G29*100/B29) ->  | I30: Part payée en %
A31: Date de la dernière déclaration fiscale : | D31: pour | I31: du montant total
D32: assainissement | I32: Remise accordée en %
D34: Mensualité pour assain. arrondie | G34: =SUM(E29) -> 0 | I34: pour l'assainissement
D35: supplément pour impôts courants
D36: Coût du mandat
D37: Total à verser | G37: =SUM(G34:G36) -> 0

Sheet Feuil1
A1: Détermination du minimum d'existence / Art. 93 LP.
A3: Débiteur
A4: Employeur
A5: Profession
H8: Débiteur | K8: Conjoint | N8: Commun
A10: Revenu net par mois | G10: fr. | H10: 2500 | J10: fr. | K10: 8000 | M10: fr. | N10: =SUM(H10:K10) -> 10500
A11: % des revenus | H11: =H10/N10 -> 0.2380952381 | K11: =K10/N10 -> 0.7619047619 | N11: =SUM(H11:K11) -> 1
A14: Minimum d'existence
A16: 1 | B16: Débiteur-couple | C16: (1200.-/1350.-/1700.-) | G16: fr. | H16: 850 | J16: fr. | K16: 850 | M16: fr. | N16: =SUM(H16:K18) -> 1700
A17: 2 | B17: Enfants | E17: Nbre
B18: 00 - 10 ans | C18: fr. | D18: 400 | G18: fr. | H18: =SUM(E18*D18) -> 0 | J18: fr. | M18: fr. | N18: =SUM(H18:K18) -> 0
B19: 10 ans et plus | C19: fr. | D19: 600 | G19: fr. | H19: =SUM(E19*D19) -> 0 | J19: fr. | M19: fr. | N19: =SUM(H19:K19) -> 0
A20: 3 | B20: Loyer | G20: fr. | H20: 1000 | J20: fr. | K20: 1000 | M20: fr. | N20: =SUM(H20:K20) -> 2000
A21: 4 | B21: Chauffage | G21: fr. | J21: fr. | M21: fr. | N21: 0
A22: 5 | B22: Caisse-maladie et accident | G22: fr. | H22: 300 | J22: fr. | K22: 300 | M22: fr. | N22: 600
A23: 6 | B23: Surplus de nourriture indispensable | G23: fr. | J23: fr. | M23: fr. | N23: =SUM(H23:K23) -> 0
A24: 7 | B24: Repas au dehors | G24: fr. | J24: fr. | M24: fr. | N24: 0
A25: 8 | B25: Usure rapide des vêtements | G25: fr. | J25: fr. | M25: fr. | N25: 0
A26: 9 | B26: Déplacements au lieu de travail | G26: fr. | J26: fr. | M26: fr. | N26: 0
A27: 10 | B27: Frais d'instruction des enfants | G27: fr. | J27: fr. | M27: fr. | N27: 0
A28: 11 | B28: Paiement ou location d'objets | G28: fr. | J28: fr. | M28: fr. | N28: 0
B29: de stricte nécessité | G29: fr. | J29: fr. | M29: fr. | N29: 0
A30: 12 | B30: Dépenses pour frais médicaux | G30: fr. | J30: fr. | M30: fr. | N30: 0
A31: 13 | B31: Entretien et/ou pension alimentaire | G31: fr. | J31: fr. | M31: fr. | N31: 0
A32: 14 | B32: Frais divers | G32: fr. | J32: fr. | M32: fr. | N32: 0
A33: 15 | G33: fr. | J33: fr. | M33: fr. | N33: 0
A34: 16 | G34: fr. | J34: fr. | M34: fr. | N34: 0
B37: Total | G37: fr. | H37: =SUM(H16:H34) -> 2150 | J37: fr. | K37: =SUM(K16:K34) -> 2150 | M37: fr. | N37: =SUM(H37:K37) -> 4300
B40: Minimum vital proportionnel | G40: fr. | H40: =N37*H11 -> 1023.809524 | J40: fr. | K40: =N37*K11 -> 3276.190476
B43: Quotité saisissable | G43: fr. | H43: =H10-H40 -> 1476.190476 | J43: fr. | K43: =K10-K40 -> 4723.809524
B46: Date :
